bitfinex-derivatives/quotes_SOLF0:USTF0_20241208
["timestamp","ask_amount","ask_price","bid_price","bid_amount"]
[1733682485809,2.1224,235.45,235.4,2.1228]
[1733682486905,2.1224,235.45,235.41,2.1227]
[1733682487301,1.3484,235.53,235.41,6.5987551]
[1733682487506,6.5987551,235.48,235.45,2.1223]
[1733682488007,8.7208551,235.48,235.44,2.1225]
[1733682489006,6.5987551,235.46,235.44,2.1225]
[1733682489606,6.5987551,235.46,235.42,2.1226]
[1733682489904,8.7209551,235.47,235.41,6.5987551]
[1733682491608,8.7209551,235.47,235.42,2.1226]
[1733682491911,2.1223,235.46,235.37,1.9]
[1733682492113,2.1223,235.46,235.4,6.5987551]
[1733682493010,2.1223,235.46,235.41,2.1227]
[1733682493214,2.1223,235.46,235.4,6.5987551]
[1733682493609,6.5987551,235.47,235.42,2.1226]
[1733682494211,2.1223,235.46,235.42,2.1226]
[1733682494604,6.5987551,235.47,235.42,2.1226]
[1733682494810,6.5987551,235.47,235.43,2.1225]
[1733682495612,1.9,235.52,235.44,6.5987551]
[1733682495811,1.9,235.51,235.44,6.5987551]
[1733682496012,6.5987551,235.52,235.46,6.5987551]
[1733682496212,8.7205551,235.52,235.46,6.5987551]
[1733682496717,10.6204551,235.53,235.46,6.5987551]
[1733682496909,8.7204551,235.53,235.46,6.5987551]
[1733682497307,8.7204551,235.53,235.48,2.122]
[1733682498614,6.5987551,235.54,235.51,2.1218]
[1733682499810,6.5987551,235.54,235.48,6.5987551]
[1733682501113,4.0212,235.59,235.5,6.5987551]
[1733682501310,6.5987551,235.58,235.5,6.5987551]
[1733682501507,1.9,235.6,235.52,6.5987551]
[1733682501817,1.9,235.6,235.54,6.5987551]
[1733682502015,8.4987551,235.6,235.54,6.5987551]
[1733682502219,6.5987551,235.6,235.54,6.5987551]
[1733682503007,1.3699,235.68,235.59,2.1211]
[1733682503008,2.1207,235.64,235.59,2.1211]
[1733682503217,2.1207,235.64,235.58,6.5987551]
[1733682503218,6.5987551,235.64,235.58,6.5987551]
[1733682503511,1.9,235.66,235.58,6.5987551]
[1733682503713,8.7193551,235.65,235.6,2.1209]
[1733682504219,8.7193551,235.65,235.58,6.5987551]
[1733682504220,6.5987551,235.65,235.58,6.5987551]
[1733682504416,1.3699,235.68,235.58,6.5987551]
[1733682504708,6.5987551,235.67,235.62,6.5987551]
[1733682505319,8.4987551,235.69,235.65,2.1206]
[1733682505510,6.5987551,235.69,235.64,6.5987551]
[1733682505707,2.6738,235.76,235.62,1.9]
[1733682505708,4.5738,235.76,235.62,1.9]
[1733682505913,6.5987551,235.73,235.66,6.5987551]
[1733682506511,6.5987551,235.71,235.66,6.5987551]
[1733682506810,6.5987551,235.71,235.64,6.5987551]
[1733682507114,6.5987551,235.67,235.61,1.9]
[1733682507418,6.5987551,235.67,235.62,6.5987551]
[1733682508113,6.5987551,235.67,235.6,10.5996551]
[1733682508618,1.88,235.71,235.66,6.5987551]
[1733682508915,6.5987551,235.7,235.64,6.5987551]
[1733682509111,8.7188551,235.7,235.64,6.5987551]
[1733682512310,6.5987551,235.73,235.66,6.5987551]
[1733682513117,1.3699,235.76,235.68,6.5987551]
[1733682513318,6.5987551,235.77,235.7,6.5987551]
[1733682513511,6.5987551,235.75,235.7,6.5987551]
[1733682513918,8.7184551,235.75,235.68,8.7190551]
[1733682515416,8.7184551,235.75,235.69,2.1202]
[1733682515917,43.69929613,235.91,235.74,6.5987551]
[1733682516118,43.69929613,235.91,235.76,6.5987551]
[1733682516119,6.5987551,235.82,235.76,6.5987551]
[1733682516821,8.7179551,235.8,235.74,8.7185551]
[1733682517125,8.7179551,235.8,235.74,2.1198]
[1733682517622,8.7179551,235.8,235.74,8.7185551]
[1733682519226,8.7179551,235.8,235.74,2.1198]
[1733682519425,8.7179551,235.8,235.74,8.7185551]
[1733682521514,1.88,235.83,235.78,6.5987551]
[1733682521515,2.119,235.83,235.78,6.5987551]
[1733682521714,6.5987551,235.84,235.78,6.5987551]
[1733682522218,1.88,235.85,235.78,6.5987551]
[1733682522219,2.119,235.83,235.78,6.5987551]
[1733682522621,1.88,235.85,235.73,1.88]
[1733682522921,2.1189,235.84,235.8,6.5987551]
[1733682524522,2.1189,235.84,235.8,8.7179551]
[1733682525429,2.1189,235.84,235.8,6.5987551]
[1733682526121,2.1188,235.85,235.8,8.7179551]
[1733682526325,6.5987551,235.86,235.8,8.7179551]
[1733682526624,6.5987551,235.86,235.7,1.2902]
[1733682526625,2.1192,235.8,235.75,8.7183551]
[1733682526819,6.5987551,235.82,235.75,6.5987551]
[1733682527017,6.5987551,235.84,235.77,6.5987551]
[1733682527423,2.119,235.83,235.78,2.1194]
[1733682528224,8.7176551,235.84,235.78,6.5987551]
[1733682529718,2.119,235.83,235.79,2.1193]
[1733682529918,6.5987551,235.84,235.78,6.5987551]
[1733682531222,8.7177551,235.84,235.79,2.1193]
[1733682531426,1.88,235.88,235.78,6.5987551]
[1733682531630,2.1186,235.87,235.83,2.1189]
[1733682531819,2.1186,235.87,235.82,6.5987551]
[1733682532324,6.5987551,235.88,235.84,2.1189]
[1733682532325,8.7172551,235.88,235.84,2.1189]
[1733682532528,2.1185,235.88,235.84,8.7176551]
[1733682533831,6.5987551,235.9,235.84,8.7176551]
[1733682534125,2.1186,235.87,235.83,2.119]
[1733682534327,6.5987551,235.88,235.8,6.5987551]
[1733682534532,2.1188,235.85,235.82,2.119]
[1733682534728,6.5987551,235.86,235.82,2.119]
[1733682535628,6.5987551,235.86,235.8,6.5987551]
[1733682535629,2.1189,235.84,235.8,6.5987551]
[1733682535926,2.1189,235.84,235.79,3.9993]
[1733682536134,8.7176551,235.84,235.79,3.9993]
[1733682536429,6.5987551,235.82,235.77,10.5981551]
[1733682536825,4.0832,235.9,235.77,10.5981551]
[1733682536826,6.5987551,235.84,235.77,10.5981551]
[1733682537025,6.5987551,235.86,235.8,2.1192]
[1733682537425,2.1186,235.88,235.81,6.5987551]
[1733682537628,6.5987551,235.88,235.81,6.5987551]
[1733682537836,6.5987551,235.88,235.81,8.7178551]
[1733682539633,2.1188,235.86,235.81,8.7178551]
[1733682540329,2.1186,235.88,235.83,6.5987551]
[1733682541333,2.1186,235.88,235.83,8.7176551]
[1733682541734,2.1186,235.88,235.83,2.1189]
[1733682542940,2.1186,235.87,235.82,8.7177551]
[1733682545234,2.1188,235.85,235.8,3.9991]
[1733682545443,2.1188,235.85,235.81,5.35078576]
[1733682545641,2.1188,235.85,235.8,3.9991]
[1733682545642,2.1188,235.85,235.8,8.4787551]
[1733682545836,2.1189,235.84,235.82,1.06034464]
[1733682546041,6.5987551,235.87,235.82,1.06034464]
[1733682547437,6.5987551,235.87,235.83,1.06034615]
[1733682547642,2.1187,235.86,235.83,1.06034615]
[1733682548146,2.1187,235.86,235.82,1.06034464]
[1733682548545,2.1187,235.86,235.83,1.06034396]
[1733682548738,2.1187,235.86,235.82,1.06034464]
[1733682548940,2.1187,235.86,235.84,1.06034467]
[1733682549140,2.1187,235.86,235.85,1.06034467]
[1733682550043,2.1187,235.86,235.82,3.17934464]
[1733682550243,2.1187,235.86,235.83,1.0603466]
[1733682550441,2.1187,235.86,235.84,1.0603466]
[1733682550650,2.1187,235.86,235.85,1.0603466]
[1733682552255,2.1187,235.86,235.85,1.06034619]
[1733682552446,2.1187,235.86,235.82,3.17934464]
[1733682552649,2.1187,235.86,235.83,1.06034619]
[1733682552852,2.1187,235.86,235.82,3.17934464]
[1733682553745,2.119,235.83,235.82,1.06034464]
[1733682553946,8.7177551,235.83,235.82,1.06034464]
[1733682558646,8.7177551,235.83,235.76,8.7182551]
[1733682558647,2.1192,235.81,235.76,8.7182551]
[1733682558853,2.1192,235.81,235.77,1.0604902]
[1733682558854,6.5987551,235.81,235.77,1.0604902]
[1733682559053,2.1193,235.8,235.78,1.0604902]
[1733682559259,2.1193,235.8,235.75,2.1197]
[1733682559454,6.5987551,235.79,235.72,1.88]
[1733682559653,6.5987551,235.79,235.74,6.5987551]
[1733682559853,8.7180551,235.79,235.75,8.7238475]
[1733682560055,8.7180551,235.79,235.76,4.90711869]
[1733682560358,8.7180551,235.79,235.77,1.06064292]
[1733682560656,8.7180551,235.79,235.75,2.1197]
[1733682560657,8.7180551,235.79,235.78,1.06064292]
[1733682561053,10.5980551,235.79,235.78,1.06064292]
[1733682561258,2.1199,235.73,235.68,6.5987551]
[1733682561455,2.1199,235.73,235.69,6.60677187]
[1733682561752,2.1199,235.73,235.7,4.90945089]
[1733682562059,2.1199,235.73,235.71,1.06082561]
[1733682562249,2.1199,235.73,235.68,6.5987551]
[1733682562451,2.1199,235.73,235.69,4.91010754]
[1733682562652,2.1199,235.73,235.7,1.06090569]
[1733682562858,2.1199,235.73,235.68,6.5987551]
[1733682563056,2.1199,235.73,235.69,4.90872924]
[1733682563356,2.1199,235.73,235.7,1.06090177]
[1733682563550,2.1199,235.73,235.67,2.1203]
[1733682563551,2.1199,235.72,235.68,6.5987551]
[1733682563752,2.1199,235.72,235.69,2.29469192]
[1733682563951,8.4787551,235.74,235.7,1.06089772]
[1733682564157,2.12,235.71,235.66,6.5987551]
[1733682564460,2.12,235.71,235.67,6.60560353]
[1733682564656,2.12,235.71,235.68,1.06091779]
[1733682564849,2.12,235.71,235.69,1.06091779]
[1733682565050,2.12,235.71,235.66,6.5987551]
[1733682565258,2.12,235.71,235.67,6.60457214]
[1733682565453,2.12,235.71,235.68,1.06091291]
[1733682565653,2.12,235.71,235.69,1.06091291]
[1733682565850,2.12,235.71,235.66,6.5987551]
[1733682566058,2.12,235.71,235.67,4.90628145]
[1733682566251,2.12,235.71,235.68,1.06091753]
[1733682566458,2.12,235.71,235.69,1.06091753]
[1733682566651,2.12,235.71,235.66,8.7192551]
[1733682566855,2.12,235.71,235.67,1.06091291]
[1733682567050,2.12,235.71,235.66,8.7192551]
[1733682567257,2.12,235.71,235.67,1.06100129]
[1733682567461,2.12,235.71,235.66,8.7192551]
[1733682567761,2.12,235.71,235.67,1.06101438]
[1733682567956,2.12,235.71,235.66,8.7192551]
[1733682568157,2.12,235.71,235.67,1.06101088]
[1733682568357,2.12,235.71,235.66,8.7192551]
[1733682569463,6.5987551,235.72,235.67,2.1204]
[1733682570557,2.12,235.71,235.67,2.1204]
[1733682570758,6.5987551,235.72,235.66,6.5987551]
[1733682571661,2.1202,235.7,235.66,6.5987551]
[1733682571960,8.7189551,235.7,235.66,6.5987551]
[1733682572157,2.1202,235.69,235.64,8.7193551]
[1733682572364,6.5987551,235.66,235.61,9.4095551]
[1733682572564,6.5987551,235.66,235.62,1.06108751]
[1733682572763,6.5987551,235.64,235.59,1.88]
[1733682572954,6.5987551,235.64,235.6,1.06119867]
[1733682573154,6.5987551,235.64,235.58,6.5987551]
[1733682573463,2.1208,235.63,235.59,3.18233755]
[1733682573660,2.1208,235.63,235.59,2.1211]
[1733682574560,2.1208,235.63,235.58,2.1212]
[1733682574863,2.1208,235.62,235.58,2.1212]
[1733682575258,6.5987551,235.6,235.55,6.5987551]
[1733682576457,2.1212,235.59,235.54,2.1216]
[1733682576654,6.5987551,235.58,235.54,2.1216]
[1733682577366,6.5987551,235.58,235.53,6.5987551]
[1733682577561,8.7199551,235.58,235.53,8.7203551]
[1733682577965,8.7199551,235.58,235.53,2.1216]
[1733682581466,8.7199551,235.58,235.53,8.7203551]
[1733682582457,2.1212,235.58,235.53,8.7203551]
[1733682587868,2.1212,235.58,235.54,2.1215]
[1733682591473,2.1212,235.58,235.51,6.5987551]
[1733682591474,6.5987551,235.56,235.51,6.5987551]
[1733682592068,8.7202551,235.56,235.51,2.1218]
[1733682592371,6.5987551,235.52,235.45,4.4493]
[1733682592671,6.5987551,235.52,235.47,6.5987551]
[1733682594273,6.5987551,235.52,235.47,8.7209551]
[1733682594774,6.5987551,235.52,235.47,2.1222]
[1733682595476,8.7205551,235.52,235.47,2.1222]
[1733682595676,6.5987551,235.52,235.46,6.5987551]
[1733682595876,6.5987551,235.52,235.48,2.1221]
[1733682596275,6.5987551,235.54,235.48,6.5987551]
[1733682596576,6.5987551,235.54,235.48,8.7207551]
[1733682597675,2.1217,235.53,235.48,8.7207551]
[1733682598473,2.1217,235.53,235.49,3.18379314]
[1733682598674,2.1217,235.53,235.49,2.122]
[1733682599574,8.7204551,235.53,235.49,2.122]
[1733682601382,8.7204551,235.53,235.5,1.06179362]
[1733682601576,8.7204551,235.53,235.45,4.4493]
[1733682601577,6.5987551,235.51,235.45,9.1680551]
[1733682601781,6.5987551,235.49,235.46,2.76077659]
[1733682601980,6.5987551,235.47,235.42,6.5987551]
[1733682602177,8.7209551,235.47,235.43,2.76124356]
[1733682602381,8.7209551,235.47,235.44,1.06201675]
[1733682602580,8.7209551,235.47,235.45,1.06201675]
[1733682602781,8.7209551,235.47,235.42,6.5987551]
[1733682602984,8.7209551,235.47,235.43,2.76125052]
[1733682603182,8.7209551,235.47,235.44,1.06201943]
[1733682603183,2.1223,235.46,235.44,1.06201943]
[1733682603481,2.1223,235.46,235.45,1.06201943]
[1733682603679,6.5987551,235.47,235.38,6.5987551]
[1733682603879,8.7213551,235.43,235.39,5.36157039]
[1733682604078,6.5987551,235.43,235.4,1.06216605]
[1733682604281,6.5987551,235.43,235.41,1.06216605]
[1733682604482,6.5987551,235.45,235.42,1.06216605]
[1733682604684,2.1223,235.46,235.4,6.5987551]
[1733682604979,2.7155,235.56,235.37,2.6233]
[1733682604980,2.7155,235.56,235.44,6.5987551]
[1733682605181,1.88,235.55,235.45,3.18448505]
[1733682605380,6.5987551,235.5,235.45,2.1223]
[1733682605581,8.4787551,235.5,235.45,2.1223]
[1733682605983,1.88,235.5,235.47,2.1221]
[1733682606888,4.0019,235.5,235.45,2.1223]
[1733682607084,6.5987551,235.49,235.46,1.06195011]
[1733682607288,6.5987551,235.49,235.42,6.5987551]
[1733682607482,6.5987551,235.49,235.44,6.5987551]
[1733682607684,6.5987551,235.49,235.45,1.0620124]
[1733682607882,6.5987551,235.49,235.46,1.0620124]
[1733682608089,6.5987551,235.49,235.44,6.5987551]
[1733682608285,6.5987551,235.49,235.45,1.06201656]
[1733682608486,6.5987551,235.49,235.44,6.5987551]
[1733682608683,6.5987551,235.49,235.46,2.1223]
[1733682608885,6.5987551,235.49,235.43,6.5987551]
[1733682609691,6.5987551,235.49,235.44,2.76120912]
[1733682609893,6.5987551,235.49,235.43,6.5987551]
[1733682609894,6.5987551,235.49,235.45,1.06200351]
[1733682610187,6.5987551,235.49,235.46,1.06200351]
[1733682610390,6.5987551,235.49,235.47,1.06200351]
[1733682610590,8.7207551,235.49,235.44,2.1224]
[1733682610787,8.7207551,235.49,235.45,2.76117782]
[1733682611092,8.7207551,235.49,235.46,1.06199147]
[1733682611284,8.7207551,235.49,235.47,1.06199147]
[1733682611489,8.7207551,235.49,235.44,2.1224]
[1733682611693,1.88,235.5,235.45,1.0619995]
[1733682611694,2.1223,235.46,235.45,1.0619995]
[1733682611893,6.5987551,235.47,235.45,1.0619995]
[1733682612099,6.5987551,235.47,235.46,1.0619995]
[1733682612490,6.5987551,235.47,235.42,6.5987551]
[1733682612694,6.5987551,235.47,235.43,2.76138335]
[1733682612891,6.5987551,235.47,235.44,2.76135587]
[1733682613095,6.5987551,235.47,235.45,1.06207052]
[1733682613395,6.5987551,235.47,235.46,1.06207052]
[1733682614694,8.7209551,235.47,235.46,1.06207052]
[1733682615302,1.88,235.5,235.46,1.06207052]
[1733682615303,2.1221,235.48,235.46,1.06207052]
[1733682615495,8.7208551,235.48,235.44,2.1224]
[1733682615695,8.7208551,235.48,235.45,1.06203643]
[1733682616005,8.4787551,235.52,235.46,7.66079153]
[1733682616200,8.4787551,235.52,235.47,1.06203643]
[1733682616397,8.4787551,235.52,235.48,3.18413643]
[1733682616600,8.4787551,235.52,235.43,1.88]
[1733682616601,6.5987551,235.5,235.49,1.06203643]
[1733682616799,6.5987551,235.5,235.39,3.1817]
[1733682617001,6.5987551,235.47,235.41,6.5987551]
[1733682617201,6.5987551,235.47,235.42,10.77399254]
[1733682617503,6.5987551,235.47,235.41,6.5987551]
[1733682617504,6.5987551,235.47,235.43,10.77399254]
[1733682617703,6.5987551,235.47,235.44,6.60059197]
[1733682617898,6.5987551,235.47,235.45,6.60059197]
[1733682618106,6.5987551,235.49,235.46,5.36933855]
[1733682618295,6.5987551,235.49,235.47,1.06190892]
[1733682618502,6.5987551,235.49,235.48,1.06190892]
[1733682618697,6.5987551,235.49,235.45,2.1224]
[1733682618900,1.2992,235.57,235.47,6.5987551]
[1733682619097,1.88,235.54,235.49,6.5987551]
[1733682619301,6.5987551,235.55,235.5,2.1219]
[1733682619507,2.1216,235.54,235.5,2.1219]
[1733682619903,6.5987551,235.53,235.5,2.1219]
[1733682620401,6.5987551,235.53,235.51,2.1218]
[1733682622310,6.5987551,235.53,235.52,1.06174859]
[1733682624309,6.5987551,235.53,235.51,2.1218]
[1733682626305,6.5987551,235.53,235.52,1.06175305]
[1733682626501,2.6228,235.66,235.52,1.06175305]
[1733682626712,2.6228,235.66,235.46,2.6712]
[1733682626713,6.5987551,235.59,235.53,11.50835794]
[1733682626909,6.5987551,235.59,235.54,1.06161329]
[1733682627112,6.5987551,235.59,235.53,6.5987551]
[1733682627301,6.5987551,235.59,235.54,1.06161275]
[1733682627503,2.6228,235.66,235.53,6.5987551]
[1733682627712,1.88,235.65,235.55,6.5987551]
[1733682627913,1.88,235.65,235.57,6.5987551]
[1733682628108,6.5987551,235.64,235.61,2.1209]
[1733682628308,4.0006,235.65,235.61,2.1209]
[1733682628309,1.88,235.68,235.61,6.5987551]
[1733682628508,8.4787551,235.68,235.61,6.5987551]
[1733682628708,8.4787551,235.68,235.64,2.1206]
[1733682628709,10.5990551,235.68,235.64,2.1206]
[1733682629208,6.5987551,235.68,235.66,2.1205]
[1733682629715,6.5987551,235.68,235.61,6.5987551]
[1733682629914,6.5987551,235.68,235.62,1.06125406]
[1733682630215,6.5987551,235.68,235.61,6.5987551]
[1733682630513,6.5987551,235.66,235.62,1.06125275]
[1733682630708,6.5987551,235.64,235.59,1.88]
[1733682630915,6.5987551,235.64,235.6,4.90517216]
[1733682631116,6.5987551,235.64,235.61,1.06124518]
[1733682631413,6.5987551,235.64,235.59,1.88]
[1733682631808,6.5987551,235.64,235.6,1.06126878]
[1733682632113,6.5987551,235.64,235.59,1.88]
[1733682632316,6.5987551,235.64,235.6,1.06126329]
[1733682632512,6.5987551,235.64,235.59,1.88]
[1733682632813,6.5987551,235.64,235.6,3.18226721]
[1733682633013,6.5987551,235.64,235.6,2.121]
[1733682633910,6.5987551,235.64,235.58,1.3019]
[1733682634114,8.7194551,235.64,235.59,1.06126976]
[1733682634307,8.7194551,235.64,235.58,2.1212]
[1733682634610,6.5987551,235.62,235.59,1.06127035]
[1733682634809,6.5987551,235.62,235.56,2.1214]
[1733682635011,6.5987551,235.6,235.53,6.5987551]
[1733682635212,6.5987551,235.6,235.54,1.06142521]
[1733682635516,6.5987551,235.6,235.54,2.1215]
[1733682635711,6.5987551,235.58,235.52,6.5987551]
[1733682635915,6.5987551,235.58,235.53,1.06147252]
[1733682636213,6.5987551,235.58,235.52,6.5987551]
[1733682636410,6.5987551,235.58,235.53,1.06147411]
[1733682636609,2.1209,235.62,235.54,6.5987551]
[1733682636811,6.5987551,235.61,235.54,6.5987551]
[1733682637015,6.5987551,235.63,235.56,6.5987551]
[1733682638714,6.5987551,235.63,235.58,2.1212]
[1733682640212,4.0007,235.64,235.61,2.1209]
[1733682640213,6.5987551,235.64,235.61,2.1209]
[1733682640813,2.1206,235.66,235.61,2.1209]
[1733682641111,6.5987551,235.63,235.58,6.5987551]
[1733682641312,6.5987551,235.65,235.62,2.1208]
[1733682641518,6.5987551,235.65,235.58,6.5987551]
[1733682642317,6.5987551,235.65,235.61,2.1208]
[1733682644013,4.0004,235.67,235.58,2.1212]
[1733682644014,6.5987551,235.63,235.58,2.1212]
[1733682644420,6.5987551,235.61,235.56,1.3061]
[1733682644619,6.5987551,235.61,235.57,2.1212]
[1733682644819,6.5987551,235.61,235.56,1.3061]
[1733682645519,6.5987551,235.61,235.57,2.1212]
[1733682645818,6.5987551,235.61,235.56,1.3061]
[1733682646015,6.5987551,235.61,235.55,8.4787551]
[1733682646016,6.5987551,235.61,235.57,2.1213]
[1733682647912,8.7197551,235.61,235.55,4.0014]
[1733682648120,6.5987551,235.59,235.55,1.88]
[1733682648421,6.5987551,235.59,235.53,6.5987551]
[1733682648624,6.5987551,235.59,235.56,2.1214]
[1733682650118,6.5987551,235.61,235.55,6.5987551]
[1733682650319,6.5987551,235.61,235.57,2.1213]
[1733682651722,8.7196551,235.61,235.57,2.1213]
[1733682652218,8.7196551,235.61,235.56,2.1214]
[1733682652418,2.121,235.6,235.55,6.5987551]
[1733682652721,6.5987551,235.61,235.52,6.5987551]
[1733682652722,6.5987551,235.59,235.52,6.5987551]
[1733682654724,8.7198551,235.59,235.54,2.1216]
[1733682655722,1.88,235.61,235.5,6.5987551]
[1733682655723,6.5987551,235.57,235.5,6.5987551]
[1733682655928,6.5987551,235.57,235.51,1.06151682]
[1733682656318,6.5987551,235.57,235.5,6.5987551]
[1733682656319,8.7200551,235.57,235.52,2.1217]
[1733682656524,6.5987551,235.55,235.52,2.1217]
[1733682656925,6.5987551,235.55,235.51,2.1218]
[1733682658827,6.5987551,235.55,235.4,3.9653]
[1733682659026,2.1217,235.53,235.49,2.122]
[1733682659228,2.1217,235.53,235.5,1.0616783]
[1733682659526,2.1217,235.53,235.49,2.122]
[1733682659718,2.1217,235.53,235.5,1.06168943]
[1733682659917,2.1216,235.54,235.49,2.122]
[1733682660121,2.1216,235.54,235.5,1.06169152]
[1733682660317,2.1216,235.54,235.49,2.122]
[1733682661427,2.1216,235.54,235.5,1.06173143]
[1733682661624,2.1216,235.54,235.49,2.122]
[1733682661824,2.1216,235.54,235.5,1.06172289]
[1733682662026,2.1216,235.54,235.49,2.122]
[1733682662327,2.1216,235.54,235.5,1.06171897]
[1733682662526,2.1216,235.54,235.49,2.122]
[1733682662727,2.1216,235.54,235.5,1.06171826]
[1733682662929,6.5987551,235.53,235.49,2.122]
[1733682663128,6.5987551,235.53,235.5,1.06172219]
[1733682663428,6.5987551,235.53,235.49,2.122]
[1733682663727,6.5987551,235.51,235.5,1.06172065]
[1733682663917,2.1218,235.51,235.45,6.5987551]
[1733682664119,6.5987551,235.52,235.46,6.60711302]
[1733682664324,2.1217,235.53,235.49,8.7206551]
[1733682664519,6.5987551,235.54,235.5,1.06173428]
[1733682664721,6.5987551,235.54,235.49,6.5987551]
[1733682665919,1.3259,235.64,235.51,6.5987551]
[1733682666229,6.5987551,235.61,235.55,6.5987551]
[1733682666429,2.1211,235.6,235.56,2.1213]
[1733682666822,6.5987551,235.61,235.55,6.5987551]
[1733682666823,8.4987551,235.61,235.55,6.5987551]
[1733682667130,10.6197551,235.61,235.57,2.1212]
[1733682667330,8.4987551,235.61,235.57,2.1212]
[1733682668731,2.121,235.6,235.57,2.1212]
[1733682668926,6.5987551,235.59,235.55,2.1214]
[1733682669732,8.7199551,235.59,235.55,2.1214]
[1733682670827,6.5987551,235.57,235.4,2.6753]
[1733682671032,6.5987551,235.53,235.41,11.46113031]
[1733682671234,6.5987551,235.53,235.42,8.50009194]
[1733682671429,8.7204551,235.53,235.46,6.5987551]
[1733682671631,8.7204551,235.53,235.47,2.7603945]
[1733682671831,8.7204551,235.53,235.48,5.37662052]
[1733682672130,6.5987551,235.51,235.49,1.06168997]
[1733682672331,6.5987551,235.51,235.48,2.122]
[1733682672736,6.5987551,235.51,235.49,1.06170453]
[1733682672925,6.5987551,235.51,235.5,1.06170856]
[1733682674734,1.3259,235.64,235.5,1.06170856]
[1733682675029,6.5987551,235.56,235.5,7.66046366]
[1733682675228,1.9,235.57,235.53,2.1217]
[1733682675428,1.3259,235.64,235.5,7.66046366]
[1733682675429,1.9,235.59,235.54,6.5987551]
[1733682676734,10.6198551,235.59,235.56,2.1213]
[1733682678033,10.6198551,235.59,235.54,6.5987551]
[1733682678239,10.6198551,235.59,235.55,2.1215]
[1733682678835,6.5987551,235.57,235.55,2.1215]
[1733682679237,2.1212,235.58,235.55,2.1215]
[1733682679439,6.5987551,235.57,235.55,2.1215]
[1733682679636,6.5987551,235.57,235.52,6.5987551]
[1733682679834,6.5987551,235.55,235.53,1.06158178]
[1733682680035,1.9,235.59,235.5,1.06170856]
[1733682680036,6.5987551,235.53,235.5,1.06170856]
[1733682680238,6.5987551,235.53,235.51,1.0616119]
[1733682680437,6.5987551,235.53,235.5,1.06170856]
[1733682680834,6.5987551,235.51,235.5,1.06170856]
[1733682681440,6.5987551,235.51,235.47,2.1221]
[1733682681639,6.5987551,235.51,235.48,3.67855462]
[1733682681844,6.5987551,235.51,235.49,1.06171252]
[1733682682044,2.1219,235.5,235.46,2.1223]
[1733682682244,6.5987551,235.49,235.47,1.06180732]
[1733682682437,6.5987551,235.49,235.44,6.5987551]
[1733682682438,8.7207551,235.49,235.44,2.1225]
[1733682682637,8.7207551,235.49,235.45,5.37760456]
[1733682682941,8.7207551,235.49,235.46,1.06183466]
[1733682683142,8.7207551,235.49,235.47,1.06183466]
[1733682683344,8.7207551,235.49,235.42,6.5987551]
[1733682683637,8.7207551,235.49,235.45,2.1224]
[1733682683843,8.7207551,235.49,235.46,1.06184321]
[1733682684039,8.7207551,235.49,235.45,2.1224]
[1733682684343,2.1221,235.48,235.46,1.06189846]
[1733682684545,2.1221,235.48,235.43,2.1225]
[1733682684743,6.5987551,235.47,235.44,1.06191151]
[1733682685036,6.5987551,235.47,235.41,2.1227]
[1733682685037,2.1224,235.46,235.41,2.1227]
[1733682685244,2.1224,235.46,235.42,1.06201955]
[1733682685440,2.1224,235.45,235.41,2.1227]
[1733682685638,6.5987551,235.45,235.42,1.06202376]
[1733682685844,6.5987551,235.43,235.38,6.5987551]
[1733682686045,6.5987551,235.43,235.39,5.37721781]
[1733682686243,6.5987551,235.43,235.4,1.06206475]
[1733682686545,6.5987551,235.43,235.41,1.06206475]
[1733682686546,2.1226,235.42,235.41,1.06206475]
[1733682686844,6.5987551,235.43,235.36,6.5987551]
[1733682687035,6.5987551,235.41,235.37,6.60942474]
[1733682687238,2.1228,235.41,235.38,4.91010981]
[1733682687442,2.1228,235.41,235.39,1.06207183]
[1733682687641,2.1228,235.41,235.4,2.29496879]
[1733682687946,2.1228,235.41,235.4,1.06207183]
[1733682689441,2.1229,235.4,235.35,2.1232]
[1733682689644,10.39903427,235.42,235.36,6.60624568]
[1733682689845,10.39903427,235.42,235.37,6.60624568]
[1733682690052,10.39903427,235.42,235.38,4.90673945]
[1733682690348,10.39903427,235.42,235.39,1.06219139]
[1733682690543,10.39903427,235.42,235.34,2.1234]
[1733682690744,10.39903427,235.42,235.35,10.78421878]
[1733682690944,2.1229,235.39,235.36,6.60500513]
[1733682691148,2.1229,235.39,235.37,6.60500513]
[1733682691446,2.1229,235.39,235.38,1.06218943]
[1733682692046,2.1229,235.39,235.34,2.1234]